[Event "CZE-ch Open 2019"]
[Site "Ostrava"]
[Date "2019.05.01"]
[Round "5.10"]
[White "Kulhanek, Tomas"]
[Black "Nguyen, Thai Dai Van"]
[Result "1/2-1/2"]
[ECO "B40"]
[WhiteElo "2316"]
[BlackElo "2547"]
[Annotator "ChessBase"]
[PlyCount "61"]
[EventDate "2019.04.27"]
[EventType "swiss"]
[EventCountry "CZE"]
[SourceTitle "playchess.com"]
[Source "ChessBase"]
[SourceQuality "1"]
[TimeControl "40/5400+30:1800+30"]

1. e4 {[%emt 0:00:00]} c5 {[%emt 0:00:00]} 2. Nf3 {[%emt 0:00:00]} e6 {[%emt 0:00:00]} 3. b3 {[%emt 0:00:19]} b6 {[%emt 0:06:22]} 4. d4 {[%emt 0:00:52]} cxd4 {[%emt 0:00:18]} 5. Nxd4 {[%emt 0:00:06]} Bb7 {[%emt 0:02:31]} 6. Bd3 {[%emt 0:00:13]} Nc6 {[%emt 0:14:48]} 7. Nxc6 {[%emt 0:02:51]} Bxc6 {[%emt 0:00:06]} 8. Bb2 {[%emt 0:00:19]} Nf6 {[%emt 0:02:00]} 9. Nd2 {[%emt 0:01:38]} d5 {[%emt 0:13:44]} 10. e5 {[%emt 0:01:41]} Ne4 {[%emt 0:03:32]} 11. O-O {[%emt 0:01:03]} Bb4 {[%emt 0:03:16]} 12. Nxe4 {[%emt 0:04:10]} dxe4 {[%emt 0:00:05]} 13. Bxe4 {[%emt 0:18:31]} Bxe4 {[%emt 0:01:07]} 14. Qg4 {[%emt 0:00:08]} Qd5 {[%emt 0:09:13]} 15. Rad1 {[%emt 0:00:07]} Qc6 {[%emt 0:06:11]} 16. Rd4 {[%emt 0:00:14]} Bxg2 {[%emt 0:07:30]} 17. Qxg2 {[%emt 0:09:00]} Qxg2+ {[%emt 0:00:35]} 18. Kxg2 {[%emt 0:00:04]} Bc5 {[%emt 0:00:40]} 19. Rd3 {[%emt 0:00:24]} Ke7 {[%emt 0:03:30]} 20. Rfd1 {[%emt 0:05:00]} Rhd8 {[%emt 0:00:19]} 21. Rxd8 {[%emt 0:00:09]} Rxd8 {[%emt 0:00:04]} 22. Rxd8 {[%emt 0:00:04]} Kxd8 {[%emt 0:00:10]} 23. f4 {[%emt 0:00:16]} Kd7 {[%emt 0:05:09]} 24. Kf3 {[%emt 0:00:09]} Kc6 {[%emt 0:00:17]} 25. Ke4 {[%emt 0:00:51]} Be7 {[%emt 0:02:29]} 26. c4 {[%emt 0:00:41]} a5 {[%emt 0:01:00]} 27. h3 {[%emt 0:01:09]} Bb4 {[%emt 0:04:06]} 28. Bd4 {[%emt 0:02:18]} Bd2 {[%emt 0:01:48]} 29. Bb2 {[%emt 0:02:19]} Bb4 {[%emt 0:05:27]} 30. Bd4 {[%emt 0:00:08]} Bd2 {[%emt 0:00:17]} 31. Bb2 {[%emt 0:00:07]} 1/2-1/2

[Event "CZE-ch Open 2019"]
[Site "Ostrava"]
[Date "2019.05.01"]
[Round "5.11"]
[White "Kociscak, Jiri"]
[Black "Blatny, Pavel"]
[Result "1-0"]
[ECO "A40"]
[WhiteElo "2496"]
[BlackElo "2326"]
[Annotator "ChessBase"]
[PlyCount "129"]
[EventDate "2019.04.27"]
[EventType "swiss"]
[EventCountry "CZE"]
[SourceTitle "playchess.com"]
[Source "ChessBase"]
[SourceQuality "1"]
[TimeControl "40/5400+30:1800+30"]

1. d4 e6 2. c4 f5 3. Nf3 Be7 4. g3 b6 5. Bg2 Bb7 6. O-O Nf6 7. b3 O-O 8. Bb2 a5 9. Nc3 Ne4 10. d5 Bf6 11. Nd4 Nxc3 12. Bxc3 c5 13. dxc6 Nxc6 14. Nb5 Bxc3 15. Nxc3 Qe7 16. Qd2 Nd8 17. Rfd1 Bxg2 18. Kxg2 Rf7 19. Qd6 Nc6 20. Na4 Rb8 21. Qc7 Qd8 22. Qxd8+ Nxd8 23. Rd6 Nc6 24. c5 bxc5 25. Nxc5 Ne5 26. Rad1 Rc8 27. Nb7 Rc2 28. R1d2 Rxd2 29. Rxd2 a4 30. bxa4 Nc4 31. Rd3 d5 32. Rb3 Rf8 33. Nc5 e5 34. Rb7 Ra8 35. Ne6 g6 36. Nc7 Ra5 37. Rb4 Nd6 38. Nb5 Ne4 39. f4 exf4 40. gxf4 Nc5 41. Nc3 Ne4 42. Nb5 Nc5 43. Nc7 Ne4 44. Kf3 Nc3 45. a3 Nxa4 46. Rb5 Rxb5 47. Nxb5 Kf7 48. Ke3 Ke6 49. Kd4 Nb6 50. Kc5 Nc4 51. a4 Kd7 52. Nc3 Nd2 53. Kxd5 Nf1 54. h3 Ng3 55. Ke5 Kc6 56. Kf6 Kc5 57. a5 Kc6 58. Kg5 Kb7 59. Kh6 Ka6 60. Kxh7 Kxa5 61. e3 Kb4 62. Nd1 Kc4 63. Kxg6 Kd3 64. h4 Ke2 65. h5 1-0

[Event "CZE-ch Open 2019"]
[Site "Ostrava"]
[Date "2019.05.01"]
[Round "5.12"]
[White "Zwardon, Vojtech"]
[Black "Svanda, Ondrej"]
[Result "1-0"]
[ECO "A36"]
[WhiteElo "2458"]
[BlackElo "2309"]
[Annotator "ChessBase"]
[PlyCount "85"]
[EventDate "2019.04.27"]
[EventType "swiss"]
[EventCountry "CZE"]
[SourceTitle "playchess.com"]
[Source "ChessBase"]
[SourceQuality "1"]
[TimeControl "40/5400+30:1800+30"]

1. c4 {[%emt 0:00:00]} c5 {[%emt 0:00:00]} 2. g3 {[%emt 0:00:00]} g6 {[%emt 0:00:00]} 3. Bg2 {[%emt 0:00:00]} Bg7 {[%emt 0:00:00]} 4. Nc3 {[%emt 0:00:00]} Nc6 {[%emt 0:00:00]} 5. a3 {[%emt 0:00:00]} a5 {[%emt 0:04:10]} 6. d3 {[%emt 0:00:00]} d6 {[%emt 0:00:30]} 7. Nf3 {[%emt 0:00:41]} e5 {[%emt 0:02:09]} 8. O-O {[%emt 0:00:06]} Nge7 {[%emt 0:00:03]} 9. Bd2 {[%emt 0:00:24]} O-O {[%emt 0:04:04]} 10. Ne1 {[%emt 0:03:33]} Be6 {[%emt 0:02:52]} 11. Nd5 {[%emt 0:00:17]} Nd4 {[%emt 0:08:09]} 12. e3 {[%emt 0:00:20]} Ndf5 {[%emt 0:05:58]} 13. Qb3 {[%emt 0:09:01]} Nxd5 {[%emt 0:06:28]} 14. cxd5 {[%emt 0:00:16]} Bc8 {[%emt 0:01:33]} 15. a4 {[%emt 0:00:06]} b6 {[%emt 0:02:24]} 16. Nc2 {[%emt 0:00:33]} Rb8 {[%emt 0:03:37]} 17. Bxa5 {[%emt 0:07:15]} Bd7 {[%emt 0:00:14]} 18. Bd2 {[%emt 0:06:43]} b5 {[%emt 0:00:11]} 19. a5 {[%emt 0:10:20]} b4 {[%emt 0:02:26]} 20. a6 {[%emt 0:08:51]} Qb6 {[%emt 0:04:24]} 21. Ra2 {[%emt 0:01:20]} Ra8 {[%emt 0:13:19]} 22. Rfa1 {[%emt 0:00:08]} Rfb8 {[%emt 0:02:04]} 23. e4 {[%emt 0:02:59]} Nd4 {[%emt 0:02:18]} 24. Nxd4 {[%emt 0:00:02]} exd4 {[%emt 0:00:06]} 25. Ra5 {[%emt 0:05:37]} Ra7 {[%emt 0:08:49]} 26. Bf4 {[%emt 0:01:07]} Rba8 {[%emt 0:01:11]} 27. Qc4 {[%emt 0:03:42]} Rb8 {[%emt 0:00:11]} 28. Bf1 {[%emt 0:00:20]} Bb5 {[%emt 0:01:10]} 29. Rxb5 {[%emt 0:09:33]} Qxb5 {[%emt 0:00:04]} 30. Bxd6 {[%emt 0:00:05]} Qxc4 {[%emt 0:03:23]} 31. dxc4 {[%emt 0:00:38]} Rba8 {[%emt 0:02:01]} 32. Bxc5 {[%emt 0:00:24]} Rxa6 {[%emt 0:00:03]} 33. Rxa6 {[%emt 0:00:11]} Rxa6 {[%emt 0:00:01]} 34. Bxb4 {[%emt 0:00:21]} Ra1 {[%emt 0:07:54]} 35. d6 {[%emt 0:00:51]} d3 {[%emt 0:00:39]} 36. c5 {[%emt 0:01:24]} Rc1 {[%emt 0:03:01]} 37. Kg2 {[%emt 0:10:13]} d2 {[%emt 0:01:10]} 38. Bxd2 {[%emt 0:00:40]} Rxc5 {[%emt 0:00:06]} 39. b4 {[%emt 0:00:15]} Rc2 {[%emt 0:01:25]} 40. Bg5 {[%emt 0:00:18]} Bd4 {[%emt 0:00:38]} 41. d7 {[%emt 0:31:12]} Rxf2+ {[%emt 0:30:20]} 42. Kh3 {[%emt 0:00:09]} Bb6 {[%emt 0:00:22]} 43. Be3 {[%emt 0:00:13]} 1-0

[Event "CZE-ch Open 2019"]
[Site "Ostrava"]
[Date "2019.05.01"]
[Round "5.13"]
[White "Biolek, Richard Jr."]
[Black "Worek, Joanna"]
[Result "1/2-1/2"]
[ECO "D00"]
[WhiteElo "2442"]
[BlackElo "2299"]
[Annotator "RC"]
[PlyCount "148"]
[EventDate "2019.04.27"]
[EventType "swiss"]
[EventCountry "CZE"]
[SourceTitle "playchess.com"]
[Source "ChessBase"]
[SourceQuality "1"]
[TimeControl "40/5400+30:1800+30"]

1. d4 {[%emt 0:02:09]} d5 {[%emt 0:00:00]} 2. Bf4 {[%emt 0:00:25]} Nf6 {[%emt 0:00:00]} 3. e3 {[%emt 0:00:10]} c5 {[%emt 0:00:00]} 4. Nf3 {[%emt 0:00:43]} Nc6 {[%emt 0:02:27]} 5. Nbd2 {[%emt 0:00:09]} cxd4 {[%emt 0:02:29]} 6. exd4 {[%emt 0:00:32]} Bf5 {[%emt 0:02:50]} 7. c3 {[%emt 0:01:22]} e6 {[%emt 0:00:39]} 8. Qb3 {[%emt 0:04:42]} Bd6 {[%emt 0:00:06]} 9. Bxd6 {[%emt 0:09:52]} Qxd6 {[%emt 0:00:06]} 10. Be2 {[%emt 0:00:03]} O-O {[%emt 0:04:03]} 11. a4 {[%emt 0:01:13]} b6 {[%emt 0:07:07]} 12. O-O {[%emt 0:01:17]} h6 {[%emt 0:00:18]} 13. Qa3 {[%emt 0:03:10]} Qc7 {[%emt 0:06:10]} 14. Rfc1 {[%emt 0:10:01]} Ne4 {[%emt 0:13:35]} 15. Nxe4 {[%emt 0:21:52]} Bxe4 {[%emt 0:03:19]} 16. Nd2 {[%emt 0:00:05]} Bg6 {[%emt 0:07:11]} 17. Bf3 {[%emt 0:00:17]} Rac8 {[%emt 0:00:40]} 18. Nb3 {[%emt 0:10:19]} Qf4 {[%emt 0:06:29]} 19. Re1 {[%emt 0:06:51]} Bc2 {[%emt 0:03:36]} 20. Be2 {[%emt 0:06:14]} Bxb3 {[%emt 0:03:01]} 21. Qxb3 {[%emt 0:01:01]} Na5 {[%emt 0:01:03]} 22. Qb5 {[%emt 0:02:36]} Rc7 {[%emt 0:03:32]} 23. Bd3 {[%emt 0:05:06]} g6 {[%emt 0:08:18]} 24. Re5 Kg7 25. g3 {[%emt 0:00:35]} Qf6 {[%emt 0:02:05]} 26. Kg2 {[%emt 0:03:56]} Qd8 {[%emt 0:01:49]} 27. Re2 {[%emt 0:04:09]} Qd6 {[%emt 0:01:00]} 28. Qa6 {[%emt 0:02:13]} h5 {[%emt 0:02:16]} 29. h4 {[%emt 0:00:06]} Qc6 {[%emt 0:02:29]} 30. Bb5 {[%emt 0:00:07]} Qb7 {[%emt 0:01:54]} 31. Qxb7 {[%emt 0:00:11]} Nxb7 {[%emt 0:00:04]} 32. Ba6 {[%emt 0:00:12]} Nd6 {[%emt 0:00:04]} 33. Kf1 {[%emt 0:02:34]} Kf6 {[%emt 0:03:29]} 34. Ke1 {[%emt 0:00:08]} Re8 {[%emt 0:01:30]} 35. Kd2 {[%emt 0:00:12]} Rce7 {[%emt 0:04:17]} 36. Rae1 {[%emt 0:00:49]} Rc7 {[%emt 0:00:22]} 37. Ra1 {[%emt 0:00:25]} Rce7 {[%emt 0:00:20]} 38. Rae1 {[%emt 0:00:04]} Rc7 {[%emt 0:00:04]} 39. Kd3 {[%emt 0:00:44]} Rg8 {[%emt 0:00:06]} 40. Rh1 {[%emt 0:01:43]} Re8 {[%emt 0:03:14]} 41. Kc2 {[%emt 0:05:40]} Rb8 {[%emt 0:01:52]} 42. Ra1 {[%emt 0:00:35]} Ke7 {[%emt 0:03:13]} 43. Kd3 {[%emt 0:04:45]} Nf5 {[%emt 0:00:46]} 44. Kd2 {[%emt 0:00:57]} Nd6 {[%emt 0:00:22]} 45. Kd3 {[%emt 0:00:05]} Nf5 {[%emt 0:00:06]} 46. Kd2 {[%emt 0:00:04]} Nd6 {[%emt 0:00:04]} 47. Ke3 {[%emt 0:03:18]} Kf6 {[%emt 0:01:11]} 48. Kd3 {[%emt 0:00:17]} Ke7 {[%emt 0:01:57]} 49. Rc2 {[%emt 0:00:00]} Rd8 {[%emt 0:01:03]} 50. Re1 {[%emt 0:00:00]} Kf6 {[%emt 0:00:39]} 51. Rce2 {[%emt 0:00:22]} Rg8 {[%emt 0:01:02]} 52. Rh1 {[%emt 0:00:24]} Rb8 {[%emt 0:00:35]} 53. Rc2 {[%emt 0:01:57]} Rd8 {[%emt 0:00:49]} 54. Ra1 {[%emt 0:00:27]} Ke7 {[%emt 0:00:44]} 55. Rd2 {[%emt 0:00:29]} Rb8 {[%emt 0:00:06]} 56. Rad1 {[%emt 0:02:30]} Kf6 {[%emt 0:02:31]} 57. Re2 {[%emt 0:00:13]} Ke7 {[%emt 0:00:25]} 58. Kc2 {[%emt 0:02:17]} Kf6 {[%emt 0:01:19]} 59. Ra1 {[%emt 0:00:32]} Ke7 {[%emt 0:00:24]} 60. Re3 {[%emt 0:01:24]} Nf5 {[%emt 0:00:58]} 61. Rd3 {[%emt 0:00:05]} Nd6 {[%emt 0:00:04]} 62. Kd2 {[%emt 0:02:09]} Kf6 {[%emt 0:01:34]} 63. Ke2 {[%emt 0:00:27]} Rg8 {[%emt 0:00:18]} 64. Rc1 {[%emt 0:00:56]} Rd8 {[%emt 0:00:26]} 65. Rf3+ {[%emt 0:00:13]} Ke7 {[%emt 0:00:05]} 66. Rd3 {[%emt 0:00:02]} Kf6 {[%emt 0:00:05]} 67. Rg1 {[%emt 0:02:32]} Rh8 {[%emt 0:00:19]} 68. Ra1 {[%emt 0:01:46]} Rb8 {[%emt 0:00:21]} 69. Rdd1 {[%emt 0:01:44]} Rh8 {[%emt 0:00:16]} 70. Rdc1 {[%emt 0:00:44]} Rb8 {[%emt 0:01:00]} 71. Bb5 {[%emt 0:01:50]} Ra8 {[%emt 0:00:31]} 72. Ba6 {[%emt 0:00:03]} Rb8 {[%emt 0:00:04]} 73. Bb5 {[%emt 0:05:26]} Ra8 {[%emt 0:00:06]} 74. Ba6 {[%emt 0:00:04]} Rb8 {[%emt 0:00:04]} 1/2-1/2

[Event "CZE-ch Open 2019"]
[Site "Ostrava"]
[Date "2019.05.01"]
[Round "5.14"]
[White "Mikes, Jan"]
[Black "Riha, Vojtech"]
[Result "1-0"]
[ECO "B68"]
[WhiteElo "2394"]
[BlackElo "2288"]
[Annotator "NA"]
[PlyCount "69"]
[EventDate "2019.04.27"]
[EventType "swiss"]
[EventCountry "CZE"]
[SourceTitle "playchess.com"]
[Source "ChessBase"]
[SourceQuality "1"]
[TimeControl "40/5400+30:1800+30"]

1. e4 {[%emt 0:00:00]} c5 {[%emt 0:00:00]} 2. Nf3 {[%emt 0:00:00]} Nc6 {[%emt 0:00:00]} 3. Nc3 {[%emt 0:00:00]} d6 {[%emt 0:02:43]} 4. d4 {[%emt 0:00:00]} cxd4 {[%emt 0:00:05]} 5. Nxd4 {[%emt 0:00:03]} Nf6 {[%emt 0:01:08]} 6. Bg5 {[%emt 0:00:30]} e6 {[%emt 0:01:05]} 7. Qd2 {[%emt 0:00:38]} Be7 {[%emt 0:02:38]} 8. O-O-O {[%emt 0:00:38]} a6 {[%emt 0:05:02]} 9. f4 {[%emt 0:00:44]} Bd7 {[%emt 0:04:02]} 10. Nf3 {[%emt 0:00:12]} h6 {[%emt 0:03:19]} 11. Bxf6 {[%emt 0:00:05]} gxf6 12. f5 {[%emt 0:00:08]} b5 {[%emt 0:01:47]} 13. Kb1 {[%emt 0:00:13]} Qb6 {[%emt 0:03:15]} 14. g3 {[%emt 0:00:31]} Rc8 {[%emt 0:02:06]} 15. fxe6 {[%emt 0:15:40]} fxe6 {[%emt 0:00:47]} 16. Bh3 {[%emt 0:02:24]} a5 {[%emt 0:24:29]} 17. Ne2 {[%emt 0:08:51]} Rh7 {[%emt 0:05:46]} 18. Nf4 {[%emt 0:01:06]} e5 {[%emt 0:07:01]} 19. Nd5 {[%emt 0:06:29]} Qc5 {[%emt 0:00:34]} 20. Bxd7+ {[%emt 0:00:12]} Kxd7 {[%emt 0:00:05]} 21. Nh4 {[%emt 0:01:12]} Nb4 {[%emt 0:08:52]} 22. Nxb4 {[%emt 0:00:16]} axb4 {[%emt 0:00:05]} 23. Nf5 {[%emt 0:01:22]} h5 {[%emt 0:02:11]} 24. Rhf1 {[%emt 0:01:14]} Bf8 {[%emt 0:10:42]} 25. Rf3 {[%emt 0:05:08]} Rc6 {[%emt 0:02:23]} 26. Rd3 {[%emt 0:02:23]} Ra6 {[%emt 0:03:27]} 27. Rd5 {[%emt 0:09:24]} Qc4 {[%emt 0:02:50]} 28. b3 {[%emt 0:00:34]} Qc6 {[%emt 0:01:48]} 29. Qxb4 {[%emt 0:01:27]} Rb6 {[%emt 0:00:35]} 30. Rc5 {[%emt 0:02:20]} Qb7 {[%emt 0:00:46]} 31. Rdd5 {[%emt 0:00:36]} Rf7 {[%emt 0:02:55]} 32. Rxb5 {[%emt 0:00:28]} Rxb5 {[%emt 0:00:26]} 33. Rxb5 {[%emt 0:00:06]} Qc6 {[%emt 0:00:14]} 34. Rb6 {[%emt 0:00:31]} Qc8 {[%emt 0:01:56]} 35. Qb5+ {[%emt 0:00:12]} 1-0

[Event "CZE-ch Open 2019"]
[Site "Ostrava"]
[Date "2019.05.01"]
[Round "5.15"]
[White "Zeman, Matyas"]
[Black "Mrazek, Lumir"]
[Result "1-0"]
[ECO "A83"]
[WhiteElo "2244"]
[BlackElo "2364"]
[Annotator "NA"]
[PlyCount "69"]
[EventDate "2019.04.27"]
[EventType "swiss"]
[EventCountry "CZE"]
[SourceTitle "playchess.com"]
[Source "ChessBase"]
[SourceQuality "1"]
[TimeControl "40/5400+30:1800+30"]

1. d4 {[%emt 0:00:00]} f5 {[%emt 0:01:55]} 2. e4 {[%emt 0:05:20]} fxe4 {[%emt 0:05:41]} 3. Nc3 {[%emt 0:00:09]} Nf6 {[%emt 0:00:43]} 4. Bg5 {[%emt 0:00:06]} c6 {[%emt 0:04:19]} 5. f3 {[%emt 0:02:56]} Qa5 {[%emt 0:08:27]} 6. Qd2 {[%emt 0:16:52]} h6 {[%emt 0:13:49]} 7. Bxf6 {[%emt 0:02:36]} exf6 {[%emt 0:00:19]} 8. fxe4 {[%emt 0:00:12]} Bb4 {[%emt 0:02:55]} 9. Bd3 {[%emt 0:03:11]} O-O {[%emt 0:04:06]} 10. Nf3 {[%emt 0:04:21]} d5 {[%emt 0:03:41]} 11. O-O {[%emt 0:06:33]} dxe4 {[%emt 0:00:12]} 12. Bxe4 {[%emt 0:00:06]} Bf5 {[%emt 0:00:49]} 13. Qd3 {[%emt 0:03:17]} Bxe4 {[%emt 0:03:50]} 14. Nxe4 {[%emt 0:00:08]} f5 {[%emt 0:06:41]} 15. Ng3 {[%emt 0:14:31]} Bd6 {[%emt 0:09:16]} 16. Qb3+ {[%emt 0:00:52]} Kh7 {[%emt 0:07:26]} 17. Qxb7 {[%emt 0:00:57]} Qb6 {[%emt 0:01:23]} 18. Qxb6 {[%emt 0:01:22]} axb6 {[%emt 0:00:05]} 19. a3 {[%emt 0:01:25]} Nd7 {[%emt 0:03:21]} 20. Rae1 {[%emt 0:01:50]} Bxg3 {[%emt 0:00:06]} 21. hxg3 {[%emt 0:00:03]} Rae8 {[%emt 0:00:15]} 22. Rxe8 {[%emt 0:00:58]} Rxe8 {[%emt 0:00:05]} 23. Re1 {[%emt 0:00:02]} Re4 {[%emt 0:01:05]} 24. Rxe4 {[%emt 0:00:30]} fxe4 {[%emt 0:00:05]} 25. Nd2 {[%emt 0:00:07]} Nf6 {[%emt 0:00:44]} 26. Nc4 {[%emt 0:03:06]} Nd5 {[%emt 0:03:10]} 27. Kf2 {[%emt 0:00:38]} h5 {[%emt 0:01:41]} 28. Ne3 {[%emt 0:01:42]} Kg6 {[%emt 0:04:51]} 29. Nxd5 {[%emt 0:00:30]} cxd5 {[%emt 0:00:05]} 30. a4 {[%emt 0:00:18]} Kf5 {[%emt 0:00:26]} 31. b3 {[%emt 0:00:35]} Kg4 {[%emt 0:05:06]} 32. c4 {[%emt 0:00:07]} dxc4 {[%emt 0:00:06]} 33. bxc4 {[%emt 0:00:06]} e3+ {[%emt 0:00:40]} 34. Kxe3 {[%emt 0:00:07]} Kxg3 {[%emt 0:00:06]} 35. d5 {[%emt 0:00:01]} 1-0

[Event "CZE-ch Open 2019"]
[Site "Ostrava"]
[Date "2019.05.01"]
[Round "5.16"]
[White "Bures, Martin"]
[Black "Roubalik, Jakub"]
[Result "0-1"]
[ECO "D30"]
[WhiteElo "2150"]
[BlackElo "2417"]
[Annotator "NA RC"]
[PlyCount "82"]
[EventDate "2019.04.27"]
[EventType "swiss"]
[EventCountry "CZE"]
[SourceTitle "playchess.com"]
[Source "ChessBase"]
[SourceQuality "1"]
[TimeControl "40/5400+30:1800+30"]

1. d4 {[%emt 0:00:00]} Nf6 {[%emt 0:00:00]} 2. c4 {[%emt 0:00:21]} e6 {[%emt 0:00:00]} 3. Nf3 {[%emt 0:00:06]} d5 {[%emt 0:00:43]} 4. Bg5 {[%emt 0:04:31]} Be7 {[%emt 0:03:47]} 5. Nc3 {[%emt 0:01:38]} h6 {[%emt 0:00:21]} 6. Bxf6 {[%emt 0:02:43]} Bxf6 {[%emt 0:00:03]} 7. e3 {[%emt 0:00:07]} c6 {[%emt 0:00:41]} 8. Qc2 {[%emt 0:01:08]} Nd7 {[%emt 0:00:56]} 9. Rd1 {[%emt 0:01:04]} O-O {[%emt 0:01:14]} 10. a3 {[%emt 0:00:41]} Qe7 {[%emt 0:03:39]} 11. Be2 {[%emt 0:03:20]} g6 {[%emt 0:00:53]} 12. O-O {[%emt 0:01:21]} Bg7 {[%emt 0:00:25]} 13. e4 {[%emt 0:06:01]} dxc4 {[%emt 0:00:36]} 14. Bxc4 {[%emt 0:00:23]} e5 {[%emt 0:00:15]} 15. d5 {[%emt 0:03:28]} Nb6 {[%emt 0:00:15]} 16. Ba2 {[%emt 0:02:06]} Bg4 {[%emt 0:01:49]} 17. dxc6 {[%emt 0:01:25]} Bxf3 {[%emt 0:03:38]} 18. gxf3 {[%emt 0:00:04]} bxc6 {[%emt 0:00:12]} 19. Rd3 {[%emt 0:05:38]} Rad8 {[%emt 0:15:24]} 20. Rfd1 {[%emt 0:00:16]} h5 {[%emt 0:14:38]} 21. Qd2 {[%emt 0:02:35]} Rd4 {[%emt 0:16:55]} 22. Ne2 {[%emt 0:04:01]} c5 {[%emt 0:03:15]} 23. Nxd4 {[%emt 0:01:41]} cxd4 {[%emt 0:00:30]} 24. Rc1 {[%emt 0:03:20]} Kh7 {[%emt 0:02:01]} 25. Rc6 {[%emt 0:02:55]} Bh6 {[%emt 0:01:52]} 26. Qc2 {[%emt 0:03:23]} Rd8 {[%emt 0:04:23]} 27. Rc7 {[%emt 0:03:43]} Rd7 {[%emt 0:00:10]} 28. Rxd7 {[%emt 0:00:13]} Qxd7 {[%emt 0:12:08]} 29. Kf1 {[%emt 0:01:21]} Kg7 {[%emt 0:09:50]} 30. Ke2 {[%emt 0:24:27]} h4 {[%emt 0:00:43]} 31. h3 {[%emt 0:03:20]} Bf4 {[%emt 0:01:34]} 32. Rb3 {[%emt 0:06:47]} Kh6 {[%emt 0:02:09]} 33. Rb4 {[%emt 0:03:03]} f6 {[%emt 0:00:28]} 34. a4 {[%emt 0:02:27]} Qxh3 {[%emt 0:00:18]} 35. a5 {[%emt 0:00:36]} Nd7 {[%emt 0:00:46]} 36. Rb7 {[%emt 0:01:54]} Nc5 {[%emt 0:00:14]} 37. Rb3 {[%emt 0:02:59]} Nxb3 {[%emt 0:00:23]} 38. Bxb3 {[%emt 0:00:10]} Qd7 {[%emt 0:00:45]} 39. Bc4 {[%emt 0:01:13]} h3 {[%emt 0:00:18]} 40. Kf1 {[%emt 0:00:25]} h2 {[%emt 0:00:31]} 41. Kg2 {[%emt 0:30:04]} Qh3+ 0-1

[Event "CZE-ch Open 2019"]
[Site "Ostrava"]
[Date "2019.05.01"]
[Round "5.17"]
[White "Serrano Salvador, Eduardo"]
[Black "Ockay, Tomas"]
[Result "1-0"]
[ECO "E12"]
[WhiteElo "2305"]
[BlackElo "2131"]
[Annotator "NA"]
[PlyCount "89"]
[EventDate "2019.04.27"]
[EventType "swiss"]
[EventCountry "CZE"]
[SourceTitle "playchess.com"]
[Source "ChessBase"]
[SourceQuality "1"]
[TimeControl "40/5400+30:1800+30"]

1. d4 {[%emt 0:00:00]} Nf6 {[%emt 0:00:00]} 2. Nf3 {[%emt 0:00:00]} e6 {[%emt 0:00:31]} 3. c4 {[%emt 0:00:07]} b6 {[%emt 0:00:05]} 4. a3 {[%emt 0:00:27]} Bb7 {[%emt 0:02:33]} 5. Nc3 {[%emt 0:00:15]} Ne4 {[%emt 0:01:27]} 6. Nxe4 {[%emt 0:00:27]} Bxe4 {[%emt 0:00:04]} 7. Nd2 {[%emt 0:00:11]} Bb7 {[%emt 0:00:54]} 8. e4 {[%emt 0:01:05]} Be7 {[%emt 0:00:10]} 9. Bd3 {[%emt 0:01:17]} O-O {[%emt 0:00:27]} 10. O-O {[%emt 0:01:22]} d5 {[%emt 0:07:53]} 11. cxd5 {[%emt 0:01:05]} exd5 {[%emt 0:00:20]} 12. e5 {[%emt 0:00:07]} c5 {[%emt 0:00:11]} 13. f4 {[%emt 0:01:17]} Nc6 {[%emt 0:08:55]} 14. Nf3 {[%emt 0:08:30]} f5 {[%emt 0:09:16]} 15. exf6 {[%emt 0:05:30]} Bxf6 {[%emt 0:00:23]} 16. dxc5 {[%emt 0:00:56]} bxc5 {[%emt 0:00:42]} 17. Qc2 {[%emt 0:00:22]} g6 {[%emt 0:01:16]} 18. Qxc5 {[%emt 0:00:40]} Rc8 {[%emt 0:00:49]} 19. Qb5 {[%emt 0:01:07]} Qb6+ {[%emt 0:08:26]} 20. Qxb6 {[%emt 0:00:38]} axb6 {[%emt 0:00:04]} 21. Rb1 {[%emt 0:03:22]} Nd4 {[%emt 0:04:33]} 22. Nxd4 {[%emt 0:03:09]} Bxd4+ {[%emt 0:00:06]} 23. Kh1 {[%emt 0:00:05]} Rce8 {[%emt 0:21:20]} 24. Bd2 {[%emt 0:03:35]} Be3 {[%emt 0:01:47]} 25. Rbd1 {[%emt 0:04:03]} d4 {[%emt 0:01:30]} 26. h3 {[%emt 0:01:47]} Kg7 {[%emt 0:02:39]} 27. Kh2 {[%emt 0:01:20]} Bc6 {[%emt 0:11:32]} 28. Bxe3 {[%emt 0:03:26]} dxe3 {[%emt 0:00:49]} 29. Be2 {[%emt 0:00:28]} Rf5 {[%emt 0:02:59]} 30. Rc1 {[%emt 0:05:05]} Bb5 {[%emt 0:05:39]} 31. Bxb5 {[%emt 0:01:02]} Rxb5 {[%emt 0:00:05]} 32. Rc2 {[%emt 0:01:41]} Rb3 {[%emt 0:00:43]} 33. Re2 {[%emt 0:00:39]} Kf6 {[%emt 0:02:27]} 34. Kg3 {[%emt 0:00:21]} g5 {[%emt 0:01:40]} 35. Rc1 {[%emt 0:03:02]} Rd8 {[%emt 0:02:10]} 36. fxg5+ {[%emt 0:04:05]} Kxg5 {[%emt 0:00:12]} 37. Rcc2 {[%emt 0:01:14]} Rd4 {[%emt 0:00:57]} 38. Rc3 {[%emt 0:04:25]} Rxc3 {[%emt 0:00:24]} 39. bxc3 {[%emt 0:00:05]} Ra4 {[%emt 0:00:06]} 40. Rb2 {[%emt 0:03:39]} Kf5 {[%emt 0:01:52]} 41. Kf3 {[%emt 0:31:50]} e2 {[%emt 0:03:18]} 42. Rb5+ {[%emt 0:00:00]} Ke6 {[%emt 0:00:20]} 43. Rxb6+ {[%emt 0:00:00]} Kd5 {[%emt 0:00:11]} 44. Kxe2 {[%emt 0:00:00]} Rxa3 {[%emt 0:00:18]} 45. Rb7 {[%emt 0:00:00]} 1-0

[Event "CZE-ch Open 2019"]
[Site "Ostrava"]
[Date "2019.05.01"]
[Round "5.18"]
[White "Otruba, Marek"]
[Black "Sramek, Vojtech"]
[Result "1/2-1/2"]
[ECO "A40"]
[WhiteElo "2103"]
[BlackElo "2304"]
[Annotator "NA"]
[PlyCount "63"]
[EventDate "2019.04.27"]
[EventType "swiss"]
[EventCountry "CZE"]
[SourceTitle "playchess.com"]
[Source "ChessBase"]
[SourceQuality "1"]
[TimeControl "40/5400+30:1800+30"]

1. d4 {[%emt 0:00:00]} Nf6 {[%emt 0:00:00]} 2. c4 {[%emt 0:00:00]} e6 {[%emt 0:00:00]} 3. g3 {[%emt 0:00:27]} Bb4+ {[%emt 0:00:00]} 4. Bd2 {[%emt 0:00:06]} Qe7 {[%emt 0:00:17]} 5. Bg2 {[%emt 0:00:47]} Nc6 {[%emt 0:00:28]} 6. Nf3 {[%emt 0:00:20]} Bxd2+ {[%emt 0:01:02]} 7. Nbxd2 {[%emt 0:01:20]} d6 {[%emt 0:00:32]} 8. O-O {[%emt 0:00:55]} O-O {[%emt 0:00:49]} 9. e4 {[%emt 0:01:09]} e5 {[%emt 0:00:07]} 10. d5 {[%emt 0:00:08]} Nb8 {[%emt 0:00:04]} 11. Ne1 {[%emt 0:01:20]} a5 {[%emt 0:00:26]} 12. Nd3 {[%emt 0:00:26]} Bg4 {[%emt 0:02:17]} 13. Qc2 {[%emt 0:03:27]} Be2 {[%emt 0:08:54]} 14. Rfe1 {[%emt 0:02:13]} Bxd3 {[%emt 0:00:06]} 15. Qxd3 {[%emt 0:00:04]} Na6 {[%emt 0:00:15]} 16. b3 {[%emt 0:02:10]} c6 {[%emt 0:05:16]} 17. Qc3 {[%emt 0:08:57]} cxd5 {[%emt 0:14:47]} 18. cxd5 {[%emt 0:01:34]} Nc5 {[%emt 0:02:27]} 19. Nc4 {[%emt 0:01:40]} Qc7 {[%emt 0:10:13]} 20. Rac1 {[%emt 0:13:24]} Rfc8 {[%emt 0:02:18]} 21. f4 {[%emt 0:06:48]} b5 {[%emt 0:05:51]} 22. Ne3 {[%emt 0:10:56]} Qd7 {[%emt 0:04:59]} 23. fxe5 {[%emt 0:03:51]} dxe5 {[%emt 0:13:24]} 24. Nf5 {[%emt 0:09:12]} g6 {[%emt 0:07:22]} 25. Qxe5 {[%emt 0:02:40]} Nd3 {[%emt 0:04:36]} 26. Rxc8+ {[%emt 0:01:47]} Rxc8 {[%emt 0:00:02]} 27. Qxf6 {[%emt 0:02:03]} Qa7+ {[%emt 0:01:45]} 28. Re3 {[%emt 0:00:49]} gxf5 {[%emt 0:00:30]} 29. Qg5+ {[%emt 0:00:23]} Kh8 {[%emt 0:00:58]} 30. Qf6+ {[%emt 0:23:33]} Kg8 {[%emt 0:00:03]} 31. Qg5+ {[%emt 0:00:04]} Kh8 {[%emt 0:07:09]} 32. Qf6+ 1/2-1/2